[Event "26th Womens ECCC 2022"]
[Site "Mayrhofen"]
[Date "2022.10.03"]
[Round "1.12"]
[White "Maltsevskaya, Aleksandra"]
[Black "Manova, Ivana"]
[Result "1-0"]
[ECO "C45"]
[WhiteElo "2389"]
[BlackElo "1876"]
[Annotator "TA"]
[PlyCount "139"]
[EventDate "2022.10.03"]
[EventType "team-tourn"]
[EventCountry "AUT"]
[SourceTitle "playchess.com"]
[Source "ChessBase"]
[SourceQuality "1"]
[TimeControl "40/5400+30:1800+30"]

{[%evp 14,139,2,-22,-7,-14,0,-5,4,-41,-30,-184,-193,-159,0,-109,-107,-99,-97,-161,-140,-209,-162,-148,-146,-169,-95,-91,-90,-82,-82,-193,-192,-324,-233,-353,-350,-362,-364,-347,-319,-328,-316,-354,-332,-499,-466,-490,-454,-601,-602,-593,-576,-599,-544,-575,0,-590,-468,-495,-481,-523,-535,-508,-506,-522,-520,-554,-465,-447,-442,-443,0,-429,-436,-442,-431,-438,-414,-418,-355,-511,-441,-519,-474,-396,-309,-293,-305,-706,0,0,0,0,0,0,0,-8,-8,-3,-8,-4,0,-2,0,0,8,8,13,3,52,52,52,50,61,39,49,48,239,239,231,231,297,287,385,385,29998,29999]} 1. e4 {[%emt 0:00:03]} e5 {[%emt 0:00:12]} 2. Nf3 {[%emt 0:00:07]} Nc6 {[%emt 0:00:09]} 3. d4 {[%emt 0:00:07]} exd4 {[%emt 0:00:47]} 4. Nxd4 {[%emt 0:00:06]} Nf6 {[%emt 0:01:49]} 5. Nxc6 {[%emt 0:00:15]} bxc6 {[%emt 0:00:05]} 6. e5 {[%emt 0:00:05]} Qe7 {[%emt 0:00:28]} 7. Qe2 {[%emt 0:00:10]} Nd5 {[%emt 0:00:47]} 8. Nd2 {[%emt 0:00:25]} a5 {[%emt 0:03:28] C45: Scotch Game.} 9. c4 {[%emt 0:05:06]} Ba6 {[%emt 0:05:57]} 10. Qe4 {[%emt 0:01:07]} Nb6 {[%emt 0:04:15] The position is equal.} (10... Nb4 {with more complications.} 11. a3 d5 12. Qb1 Qxe5+ 13. Be2 dxc4 14. axb4 c3) 11. Bd3 {[%emt 0:02:12]} d5 {[%emt 0:09:17] [#]} 12. Qe2 $146 {[%emt 0:42:40] [#]} (12. exd6 $11 cxd6 13. O-O Qxe4 14. Nxe4) ({Predecessor:} 12. exd6 cxd6 13. b3 d5 14. Qxe7+ Bxe7 15. Bb2 O-O 16. O-O-O Bg5 17. Kb1 Bxd2 18. Rxd2 dxc4 {1-0 (47) Gonzalez Diaz,J (2259)-Mihelic,V (1745) Portoroz 2017}) 12... dxc4 $1 $19 {[%emt 0:08:02]} 13. Be4 {[%emt 0:08:16] [#]} Qc5 {[%emt 0:04:08]} ({Black should play} 13... c3 $1 $17 14. Bxc6+ Nd7) 14. Qf3 {[%emt 0:03:35]} (14. O-O $1 $11) 14... O-O-O $17 {[%emt 0:02:31]} 15. O-O {[%emt 0:00:43]} (15. Qxf7 $2 c3 16. bxc3 Qxc3 $19) (15. Bxc6 $2 Qxe5+ 16. Qe4 Qf6 $19) 15... Qxe5 {[%emt 0:10:32]} 16. Re1 {[%emt 0:02:38]} (16. Bxc6 $2 f5 17. Qc3 Qxc3 18. bxc3 Rd6 $19) (16. Nb1 $17) 16... Kb8 $19 {[%emt 0:01:08]} 17. Nf1 {[%emt 0:03:08]} (17. Qc3 $17 {was necessary.} Qb5 18. a3) 17... Bb4 {[%emt 0:11:28]} 18. Bf4 {[%emt 0:06:52]} Qf6 {[%emt 0:02:52]} 19. Qg3 {[%emt 0:01:24]} Bd6 {[%emt 0:00:56]} (19... Qxb2 20. Bxc7+ Kb7 21. Reb1 $16) (19... Bxe1 $19 20. Bxc7+ Kb7 21. Rxe1 Rde8) 20. Bxd6 $17 {[%emt 0:00:07]} Rxd6 {[%emt 0:00:34]} ({Don't play} 20... cxd6 $6 21. Bxc6 Kc7 22. Bf3 $15) 21. Qa3 {[%emt 0:00:43]} Qg5 {[%emt 0:05:35]} 22. b4 {[%emt 0:00:09]} (22. Bf3 $17) 22... a4 $19 {[%emt 0:00:49]} 23. b5 {[%emt 0:04:58]} (23. Qb2 $142) 23... Bxb5 {[%emt 0:01:18]} 24. Bf3 {[%emt 0:00:49]} (24. Qb4 $142) 24... Rd3 {[%emt 0:04:24]} 25. Qe7 {[%emt 0:00:29]} Qxe7 {[%emt 0:00:46]} 26. Rxe7 {[%emt 0:00:06]} Rd7 {[%emt 0:00:58]} 27. Re5 {[%emt 0:00:46]} Nd5 {[%emt 0:05:54]} 28. Rb1 {[%emt 0:02:25] aiming for Bxd5.} Rhd8 {[%emt 0:02:40]} 29. Ne3 {[%emt 0:01:05]} (29. Ree1 $142) 29... Nxe3 {[%emt 0:11:16]} 30. fxe3 {[%emt 0:00:06]} Ka7 {[%emt 0:01:08]} 31. Kf2 {[%emt 0:00:05][%cal Of3c6]} Rd2+ {[%emt 0:00:55]} 32. Kg3 {[%emt 0:00:05][%cal Of3c6]} Ka6 {[%emt 0:00:47]} 33. Re7 {[%emt 0:04:39]} R8d7 {[%emt 0:00:11]} 34. Re8 {[%emt 0:00:12]} Rd8 {[%emt 0:00:10] Against Ra8+} 35. Re7 {[%emt 0:00:08]} R2d7 {[%emt 0:01:06]} 36. Re5 {[%emt 0:00:08]} f6 {[%emt 0:00:28]} 37. Re6 {[%emt 0:02:45]} Rd6 {[%emt 0:00:21]} 38. Re7 {[%emt 0:00:06]} R8d7 {[%emt 0:00:13]} 39. Re8 {[%emt 0:00:12]} Kb6 {[%emt 0:00:39]} 40. Ra8 {[%emt 0:01:15]} Rd2 {[%emt 0:00:49]} 41. Rxa4 {[%emt 0:30:31]} Kc5 {[%emt 0:30:19]} 42. Ra5 {[%emt 0:00:36]} Kb6 $2 {[%emt 0:00:00]} (42... c3 $19 43. a4 c2) 43. Ra8 $2 {[%emt 0:00:00][%mdl 8192]} (43. Ra4 $1 $11) 43... c3 {[%emt 0:00:00][%cal Bc4c3,Bc3c2][%mdl 32]} 44. a4 {[%emt 0:00:00]} c2 {[%emt 0:00:00]} 45. Rc1 {[%emt 0:00:00]} Ba6 {[%emt 0:00:40]} 46. Rb8+ {[%emt 0:00:00]} Bb7 {[%emt 0:02:02] Threatens to win with ...R7d3.} 47. Bg4 {[%emt 0:00:00]} (47. Be4 $142 Ka7 48. Re8) 47... R7d3 {[%emt 0:00:35]} 48. Bc8 {[%emt 0:00:00]} Rxe3+ {[%emt 0:00:20]} 49. Kf4 {[%emt 0:00:00]} Ra3 {[%emt 0:00:38]} 50. Rxb7+ {[%emt 0:00:00]} Kc5 {[%emt 0:00:21]} 51. Rb2 $2 {[%emt 0:00:00]} (51. Rxc7 Rf2+ 52. Kg4 (52. Ke4 $2 g5 $19)) 51... Rxa4+ $2 {[%emt 0:00:36]} ({Better is} 51... Rc3 $19 {( -> ...g6)} 52. Kf5 Kd6 53. Rcxc2 Rdxc2 54. Rxc2 Rxc2) 52. Ke3 $11 {[%emt 0:00:00]} Rxg2 {[%emt 0:00:18] Strongly threatening ...Ra3+.} 53. Rbxc2+ {[%emt 0:00:00]} Rxc2 {[%emt 0:00:06]} 54. Rxc2+ {[%emt 0:00:00][%mdl 4096] Endgame KRB-KR} Kd6 {[%emt 0:00:52]} 55. Bf5 {[%emt 0:00:00]} g6 {[%emt 0:00:19]} 56. Be4 {[%emt 0:00:00]} c5 {[%emt 0:00:19]} 57. Rd2+ {[%emt 0:00:00]} Ke6 {[%emt 0:00:29]} 58. Bd5+ {[%emt 0:00:00]} Ke5 {[%emt 0:00:14]} 59. Bg8 {[%emt 0:00:00][%csl Gg8][%cal Rd2d5]} Re4+ {[%emt 0:01:03]} 60. Kf3 {[%emt 0:00:00][%csl Gg8][%cal Rd2d5]} Rf4+ {[%emt 0:00:44]} 61. Kg3 {[%emt 0:00:00]} Rf1 {[%emt 0:00:40]} (61... h6 $11 {deserves consideration.}) 62. Rd5+ $14 {[%emt 0:00:00]} Ke4 {[%emt 0:00:17]} 63. Rxc5 {[%emt 0:00:00]} h6 {[%emt 0:00:42]} 64. Bh7 {[%emt 0:00:00] White is more active.} Rg1+ {[%emt 0:00:28]} 65. Kf2 {[%emt 0:00:00]} Rd1 $2 {[%emt 0:00:34]} (65... Rg4 $14) 66. Bxg6+ $18 {[%emt 0:00:00]} Kf4 {[%emt 0:00:23]} 67. Rc4+ {[%emt 0:00:00]} Kg5 {[%emt 0:00:11]} 68. Bc2 {[%emt 0:00:00] White threatens h4+ and mate.} Rd2+ {[%emt 0:00:09]} 69. Kg3 {[%emt 0:00:00] Threatening mate with Rg4+.} Rd5 $2 {[%emt 0:00:55]} (69... f5 $18 70. Rc5 Kf6 71. Bxf5 Rd1) 70. Rg4+ {[%emt 0:00:00] Quite a comeback for White.  Weighted Error Value: White=0.46/Black=0.31} 1-0

[Event "26th Womens ECCC 2022"]
[Site "Mayrhofen"]
[Date "2022.10.03"]
[Round "1.13"]
[White "Mammadzada, Gunay"]
[Black "Enkhtuul, Altan-Ulzii"]
[Result "1/2-1/2"]
[ECO "C09"]
[WhiteElo "2483"]
[BlackElo "2295"]
[Annotator "TA"]
[PlyCount "78"]
[EventDate "2022.10.03"]
[EventType "team-tourn"]
[EventCountry "AUT"]
[SourceTitle "playchess.com"]
[Source "ChessBase"]
[SourceQuality "1"]
[TimeControl "40/5400+30:1800+30"]

{[%evp 18,78,0,16,22,16,10,16,18,10,7,10,7,4,5,-4,5,0,0,-7,4,-3,7,4,24,15,18,14,20,22,26,26,24,29,39,23,41,44,49,22,52,53,57,32,51,50,50,48,51,50,49,53,104,0,28,31,43,0,0,0,90,0,59]} 1. e4 {[%emt 0:00:03]} e6 {[%emt 0:00:03]} 2. d4 {[%emt 0:00:37]} d5 {[%emt 0:00:06]} 3. Nd2 {[%emt 0:01:04]} c5 {[%emt 0:00:09]} 4. Ngf3 {[%emt 0:02:56]} Nc6 {[%emt 0:00:14]} 5. exd5 {[%emt 0:00:55]} exd5 {[%emt 0:00:22]} 6. Bb5 {[%emt 0:00:32]} cxd4 {[%emt 0:02:24]} 7. O-O {[%emt 0:06:17]} Bd6 {[%emt 0:00:09]} 8. Nb3 {[%emt 0:09:04]} Nge7 {[%emt 0:00:17]} 9. h3 {[%emt 0:07:47]} O-O {[%emt 0:00:45]} 10. Nbxd4 {[%emt 0:00:31]} a6 {[%emt 0:01:04] [#] Strongly threatening ...Nxd4. C09: French Tarrasch: 3...c5 4 exd5 exd5 5 Ngf3 Nc6.} 11. Bd3 {[%emt 0:00:32]} Nxd4 {[%emt 0:01:55]} 12. Nxd4 {[%emt 0:00:05] [#]} Bc7 $146 {[%emt 0:07:51]} ({Predecessor:} 12... Nc6 13. Be3 Ne5 14. Be2 Nc4 15. Bc1 Bc7 16. b3 Ne5 17. f4 Nc6 18. Nxc6 bxc6 {0-1 (42) Osmanodja,F (2348)-Cosma,E (2328) Batumi 2018}) 13. Qh5 {[%emt 0:10:20][%csl Gd3][%cal Rh5h7]} g6 {[%emt 0:01:44]} 14. Qh4 {[%emt 0:01:47]} Nc6 {[%emt 0:03:02]} (14... Qd6 {looks sharper.} 15. g3 Nc6 16. Bh6 Re8) 15. Qxd8 {[%emt 0:09:42]} (15. Nf3 {with more complications.} Ne5 16. Ng5 h5 17. Bf4) 15... Rxd8 {[%emt 0:03:47]} 16. Nb3 {[%emt 0:05:58]} Kg7 {[%emt 0:10:01]} 17. Bg5 {[%emt 0:03:12]} f6 {[%emt 0:07:01]} 18. Bd2 {[%emt 0:00:08]} Be5 {[%emt 0:06:50]} 19. Rab1 {[%emt 0:01:18]} b5 {[%emt 0:15:40]} 20. Rfe1 {[%emt 0:01:17]} Bd6 {[%emt 0:01:57]} 21. Be3 {[%emt 0:03:54]} Kf7 {[%emt 0:03:15]} 22. Rbd1 {[%emt 0:02:10]} Nb4 {[%emt 0:08:17]} 23. Bc5 {[%emt 0:07:04]} Nxd3 {[%emt 0:09:01]} 24. cxd3 {[%emt 0:00:30]} Bxc5 {[%emt 0:02:02]} 25. Nxc5 {[%emt 0:00:01]} Ra7 {[%emt 0:03:52]} 26. d4 {[%emt 0:03:14]} a5 {[%emt 0:07:24]} 27. Rd3 {[%emt 0:04:45]} Bf5 {[%emt 0:01:22]} 28. Rde3 {[%emt 0:01:04]} h5 {[%emt 0:00:13]} 29. h4 {[%emt 0:03:22]} a4 {[%emt 0:00:49]} 30. a3 {[%emt 0:03:14]} b4 {[%emt 0:02:16]} 31. f3 {[%emt 0:05:04]} ({Of course not} 31. axb4 Rb8 $11) 31... Rb8 {[%emt 0:00:54]} 32. Kf2 {[%emt 0:01:29]} bxa3 33. bxa3 {[%emt 0:00:02]} Rb2+ {[%emt 0:00:18]} 34. R3e2 {[%emt 0:00:26]} Rb3 {[%emt 0:01:43]} 35. Re3 {[%emt 0:03:10] White is more active.} ({White must play} 35. Nxb3 $16 axb3 36. a4) 35... Rb2+ $11 {[%emt 0:00:04]} 36. R1e2 {[%emt 0:00:16]} Rb1 {[%emt 0:00:17]} 37. Re1 {[%emt 0:04:29] Against Rd1} (37. Nxa4 $5 {[%cal Ra4c3]} Bd3 38. Rxd3 Rxa4 39. Rc2 $14) 37... Rb2+ {[%emt 0:00:08]} 38. R3e2 {[%emt 0:00:34]} ({White should play} 38. R1e2 $11 Rc2 39. Rxc2 Bxc2 40. Kg3) 38... Rb3 $1 $16 {[%emt 0:00:24]} 39. Re3 {[%emt 0:00:31]} ({Better is} 39. Nxb3 $16 axb3 40. a4) 39... Rb1 {Weighted Error Value: White=0.13 (very precise) /Black=0.07 (flawless)} (39... Rb2+ $11 40. R3e2) 1/2-1/2

[Event "26th Womens ECCC 2022"]
[Site "Mayrhofen"]
[Date "2022.10.03"]
[Round "1.14"]
[White "Klek, Hanna Marie"]
[Black "Fataliyeva, Ulviyya"]
[Result "0-1"]
[ECO "C02"]
[WhiteElo "2301"]
[BlackElo "2422"]
[Annotator "TA"]
[PlyCount "74"]
[EventDate "2022.10.03"]
[EventType "team-tourn"]
[EventCountry "AUT"]
[SourceTitle "playchess.com"]
[Source "ChessBase"]
[SourceQuality "1"]
[TimeControl "40/5400+30:1800+30"]

{[%evp 10,74,8,6,17,10,14,0,0,0,0,0,0,0,0,0,0,0,0,0,-5,-4,-11,-31,-33,-37,-29,-27,0,0,106,107,99,0,0,0,0,0,0,0,35,0,0,-9,-8,0,-9,-93,-97,-105,-123,-113,-110,-131,-151,-198,-201,-306,-275,-291,-291,-440,-384,-414,-230,-2219,-1819]} 1. e4 {[%emt 0:00:03] Moradiabadi,E} e6 {[%emt 0:00:03]} 2. d4 {[%emt 0:00:05]} d5 {[%emt 0:00:04]} 3. e5 {[%emt 0:00:04]} c5 {[%emt 0:00:03]} 4. c3 {[%emt 0:00:04]} Qb6 {[%emt 0:00:03]} 5. Nf3 {[%emt 0:00:06]} Bd7 {[%emt 0:00:04]} 6. Bd3 {[%emt 0:00:09]} cxd4 {[%emt 0:00:05] C02: French: Advance Variation.} 7. Nxd4 {[%emt 0:00:06] The modern move.} Bc5 {[%emt 0:00:09]} 8. O-O {[%emt 0:03:40]} Bxd4 {[%emt 0:00:04] The position is equal.} 9. cxd4 {[%emt 0:00:05]} Qxd4 {[%emt 0:00:04] Threatening ...Nc6.} 10. Nc3 {[%emt 0:02:30] [#] aiming for Nb5.} Nc6 $146 {[%emt 0:00:04]} ({Predecessor:} 10... a6 11. Re1 Bc6 12. Ne2 Qg4 13. h3 Qh5 14. Bf4 Bb5 15. Qb3 Ne7 16. Bxb5+ axb5 17. Qxb5+ {1-0 (56) Grischuk,A (2746)-Morozevich,A (2694) Khanty-Mansiysk 2011 CBM 145 [Moradiabadi,E]}) 11. Nb5 {[%emt 0:00:37]} Qxe5 {[%emt 0:00:05]} 12. Re1 {[%emt 0:01:28]} Qb8 {[%emt 0:00:05]} 13. Qg4 $1 {[%emt 0:02:28]} Kf8 {[%emt 0:00:05] White should prevent ...h5.} (13... Ne5 $2 14. Qxg7 Nxd3 15. Qxh8 Bxb5 16. Qxg8+ Ke7 17. Bg5+ Kd6 18. Qxf7 $18) 14. Bf4 $36 {[%emt 0:07:51][%mdl 2048] White has some pressure.} e5 {[%emt 0:00:10]} 15. Qxd7 {[%emt 0:00:12]} Nf6 {[%emt 0:00:07]} 16. Qd6+ {[%emt 0:14:30]} (16. Qc7 exf4 17. Qd6+ Qxd6 18. Nxd6 g6 $17) (16. Bxe5 $5 Nxd7 17. Bd6+ Kg8 18. Bxb8 Rxb8 19. Rad1 $11) 16... Qxd6 {[%emt 0:00:07]} 17. Nxd6 {[%emt 0:00:03]} exf4 {[%emt 0:00:07]} 18. Rac1 {[%emt 0:02:55]} Rb8 {[%emt 0:21:55]} 19. Nxb7 {[%emt 0:01:30][%mdl 64] Remove Defender} Rxb7 {[%emt 0:02:32]} (19... Nb4 $11 {remains equal.} 20. Bb1 g6) 20. Rxc6 $16 {[%emt 0:00:13] White threatens Rc8+ and mate.} Re7 {[%emt 0:01:20]} 21. Rxe7 {[%emt 0:08:29]} (21. Rc8+ $16 Ne8 22. Kf1) 21... Kxe7 {[%emt 0:00:04][%mdl 4096] Endgame KRB-KRN} 22. Rc7+ {[%emt 0:00:47]} Ke6 {[%emt 0:00:25]} 23. Rxa7 {[%emt 0:00:11]} Rb8 {[%emt 0:00:08]} 24. b3 {[%emt 0:01:03]} f3 {[%emt 0:21:24]} 25. Rc7 {[%emt 0:07:17]} Nh5 {[%emt 0:08:43]} 26. g3 {[%emt 0:08:13] Against Nf4} (26. Bxh7 $2 g6 27. Rc6+ (27. gxf3 $2 Rh8 $17) 27... Kd7 $19) 26... Nf6 {[%emt 0:01:25]} 27. Kf1 {[%emt 0:02:56]} Ng4 {[%emt 0:01:15]} 28. Ke1 {[%emt 0:03:02]} (28. Bxh7 $2 Rh8 29. Rc6+ Ke5 $19) (28. Rc6+ $11 Ke7 29. Bf5 (29. Bxh7 $2 g6 $19)) 28... Kd6 $17 {[%emt 0:13:15]} 29. Ra7 {[%emt 0:06:28]} Re8+ {[%emt 0:04:51]} 30. Kd2 {[%emt 0:00:28]} f5 {[%emt 0:00:49]} 31. Bb5 {[%emt 0:06:45] [#]} Re5 {[%emt 0:02:07]} 32. b4 {[%emt 0:01:57]} (32. Rxg7 $6 Nxf2 33. a4 (33. Rxh7 Ne4+ 34. Kc2 f2 $15) 33... h5 $11) (32. a4 $17 {keeps fighting.}) 32... Nxf2 $19 {[%emt 0:01:46]} 33. a4 {[%emt 0:04:20]} (33. Ra6+ {might work better.} Kc7 34. Rc6+ Kb8 35. Rb6+ Ka7 36. Ra6+ Kb7 37. Ra3 Ne4+ 38. Kc2) 33... Re4 {[%emt 0:06:03]} 34. Rxg7 {[%emt 0:01:38] [#]} Ng4 $1 {[%emt 0:00:59]} 35. h3 {[%emt 0:01:19]} (35. Rg5 $142 Ke5 36. Bd3) 35... Nh2 {[%emt 0:02:08] And now ...f2 would win.} 36. g4 {[%emt 0:02:32]} ({But not} 36. Rd7+ $2 Ke6 37. g4 (37. Rxh7 $2 f2 $19) 37... fxg4 38. hxg4 f2 39. Rxh7 f1=Q 40. Bxf1 Nxf1+ 41. Kc3 Rc4+ 42. Kb3 Nd2+ 43. Kb2 d4 $19) 36... Rxb4 {[%emt 0:01:54]} (36... f2 $142 37. Rd7+ (37. gxf5 $2 Rc4 $19) 37... Ke5) 37. gxf5 $2 {[%emt 0:03:41] [#]} (37. Rd7+ Kc5 38. Rc7+ Kd4 39. Rf7 (39. gxf5 $2 f2 $19)) 37... Rxb5 $1 {[%emt 0:00:53][%mdl 512] Weighted Error Value: White=0.47/Black=0.19 (very precise)} 0-1

[Event "26th Womens ECCC 2022"]
[Site "Mayrhofen"]
[Date "2022.10.03"]
[Round "1.15"]
[White "Mammadova, Gulnar"]
[Black "Navrotescu, Andreea"]
[Result "0-1"]
[ECO "B69"]
[WhiteElo "2389"]
[BlackElo "2287"]
[Annotator "TA"]
[PlyCount "118"]
[EventDate "2022.10.03"]
[EventType "team-tourn"]
[EventCountry "AUT"]
[SourceTitle "playchess.com"]
[Source "ChessBase"]
[SourceQuality "1"]
[TimeControl "40/5400+30:1800+30"]

{[%evp 25,118,42,49,26,31,45,35,34,43,0,50,26,27,14,35,33,12,25,23,22,22,0,66,72,75,62,78,66,74,48,36,50,56,36,34,17,17,16,70,27,25,-335,-310,-293,-312,-394,-360,-385,-374,-423,-423,-423,-421,-620,-254,-254,-248,-239,-239,-291,-293,-6033,-288,-285,-282,-12843,-12836,-12834,-12835,-12835,-12835,-12836,-12836,-12839,-12840,-12840,-12841,-12841,-12841,-12842,-12837,-12837,-12838,-12844,-12844,-12845,-12845,-12845,-12846,-12846,-12847,-12847,-12847,-12847,-12847]} 1. e4 {[%emt 0:00:03]} c5 {[%emt 0:00:06]} 2. Nf3 {[%emt 0:00:05]} d6 {[%emt 0:00:05]} 3. d4 {[%emt 0:00:08]} cxd4 {[%emt 0:00:07]} 4. Nxd4 {[%emt 0:00:10]} Nf6 {[%emt 0:00:07]} 5. Nc3 {[%emt 0:00:04]} Nc6 {[%emt 0:00:05]} 6. Bg5 {[%emt 0:00:17]} e6 {[%emt 0:00:08]} 7. Qd2 {[%emt 0:00:10]} a6 {[%emt 0:00:18]} 8. O-O-O {[%emt 0:00:13]} Bd7 {[%emt 0:00:07]} 9. f4 {[%emt 0:00:15]} Be7 {[%emt 0:03:17]} 10. Nf3 {[%emt 0:01:10]} b5 {[%emt 0:00:11]} 11. Bxf6 {[%emt 0:00:49]} gxf6 {[%emt 0:00:33]} 12. f5 {[%emt 0:01:16]} Qb6 {[%emt 0:09:56]} 13. Kb1 {[%emt 0:04:20]} O-O-O {[%emt 0:04:40]} 14. Bd3 {[%emt 0:01:49] B69: Sicilian: Richter-Rauzer: 7...a6 8 0-0-0 Bd7 9 f4 Be7 10 Nf3 b5 11 Bxf6.} Kb8 {[%emt 0:04:30]} 15. Ne2 {[%emt 0:03:02]} Ne5 {[%emt 0:07:17]} 16. Nf4 {[%emt 0:06:33] White is slightly better.} Bc8 {[%emt 0:02:49]} 17. Rhe1 {[%emt 0:07:18]} Rhe8 {[%emt 0:13:21]} ({Black should play} 17... d5 $11) 18. fxe6 {[%emt 0:08:07]} fxe6 {[%emt 0:00:15]} 19. Bf1 {[%emt 0:00:33] [#]} d5 $146 {[%emt 0:02:35]} ({Predecessor:} 19... Qc5 20. Re3 Bf8 21. Rc3 Qb6 22. Nh5 d5 23. Nxe5 fxe5 24. Rd3 Be7 25. exd5 exd5 26. Rxd5 {½-½ (42) Dragomirescu,R (2353)-Bida,M (2141) Brasov 2011}) 20. exd5 {[%emt 0:07:22]} Nxf3 {[%emt 0:00:17]} 21. gxf3 {[%emt 0:00:04]} e5 {[%emt 0:00:10][%mdl 64] Deflection} 22. Nd3 {[%emt 0:00:50]} Bf8 {[%emt 0:09:54]} 23. Bg2 {[%emt 0:03:28]} Rxd5 {[%emt 0:04:13]} ({Black should try} 23... Bf5 $11) 24. f4 $14 {[%emt 0:01:13]} Rd4 {[%emt 0:00:13]} 25. fxe5 {[%emt 0:01:50]} fxe5 {[%emt 0:01:59]} 26. Qf2 {[%emt 0:06:29]} Qd6 {[%emt 0:08:57] [#]} 27. Nc1 $1 {[%emt 0:06:42] And now Rxd4 would win.} Rxd1 {[%emt 0:10:38]} 28. Rxd1 {[%emt 0:00:07]} Qc5 {[%emt 0:00:17]} 29. Qg3 {[%emt 0:10:58]} Bh6 {[%emt 0:02:21]} (29... Bf5 $2 30. Nd3 Qc8 31. Rf1 Bxd3 32. cxd3 $18 (32. Qxd3 e4 $16)) 30. Nd3 {[%emt 0:05:02]} Qe3 {[%emt 0:04:16]} 31. Qh4 {[%emt 0:05:09]} Rg8 {[%emt 0:06:15]} (31... e4 $11 32. Re1 Qg5 33. Rxe4 Rg8 34. Qxg5 Rxg5) 32. Re1 {[%emt 0:01:28]} (32. Nb4 $5 Qe2 33. Re1 Qxg2 34. Qxh6 $14) 32... Qg5 {[%emt 0:00:04]} 33. Qb4 {[%emt 0:01:31][%mdl 8192] Now White is beyond hope.} (33. Qf2 $11 Qxg2 34. Qb6+ Bb7 35. Qxh6) 33... Bf8 $19 {[%emt 0:01:18] A strong pair of Bishops.} ({Weaker is} 33... Qxg2 34. Qd6+ Ka8 35. Qxh6 $14) 34. Qc3 {[%emt 0:05:55] Bd5 is the strong threat.} Qxg2 {[%emt 0:00:10]} 35. Nxe5 {[%emt 0:00:10]} Bd6 {[%emt 0:02:26]} 36. a4 {[%emt 0:04:00]} bxa4 {[%emt 0:02:00]} 37. Nc6+ {[%emt 0:00:58]} Ka8 {[%emt 0:00:15]} 38. Rd1 {[%emt 0:01:03]} Be6 {[%emt 0:02:08][%cal Og8c8] Strongly threatening ...Rc8!} 39. b3 {[%emt 0:02:42]} (39. Qe3 $142 Qxc6 40. Qxe6) 39... Bd5 {[%emt 0:01:08]} (39... Bf4 $142 40. Qc5 {[#]} Be3 $1 {[%mdl 512]} 41. Qxe3 Qxc6) 40. Qd3 {[%emt 0:04:20][%cal Rd3a6]} Bxc6 {[%emt 0:00:16]} 41. Qxa6+ {[%emt 0:30:16]} Kb8 {[%emt 0:30:04]} 42. Rxd6 {[%emt 0:02:29]} Rc8 {[%emt 0:00:00]} 43. bxa4 $2 {[%emt 0:00:00]} (43. Kb2) 43... Qg1+ $2 {[%emt 0:00:00]} (43... Kc7 {( -> ...Rb8+)} 44. Qd3 Rb8+ 45. Ka2 Qg8+ 46. c4 Rb4 47. Rxc6+ Kxc6 48. Qf3+ Kc5 49. Qf5+ Kxc4 50. Qc2+ Kd4+ 51. Ka3 Qf8) 44. Kb2 {[%emt 0:00:00]} Qc5 {[%emt 0:00:00] aiming for ...Kc7.} 45. Rf6 $2 {[%emt 0:00:00]} (45. Rd2) 45... Qd4+ {[%emt 0:00:00] Black is clearly winning.} 46. Kb1 {[%emt 0:00:00]} Qb4+ {[%emt 0:00:00]} ({And not} 46... Qxf6 47. Qb6+ Ka8 48. Qa6+ Kb8 49. Qb6+ Ka8 50. Qa6+ Kb8 $11) 47. Kc1 {[%emt 0:00:00] [#]} Re8 $1 {[%emt 0:00:00][%cal Re8e1]} 48. Rf1 {[%emt 0:00:00]} Bxa4 {[%emt 0:00:00]} 49. Qd3 {[%emt 0:00:00]} Rc8 {[%emt 0:00:00]} 50. Qg3+ {[%emt 0:00:00]} Ka8 {[%emt 0:00:00]} 51. Qf3+ {[%emt 0:00:00]} Bc6 {[%emt 0:00:00]} 52. Qh3 {[%emt 0:00:00]} Rc7 {[%emt 0:00:00]} 53. Qg3 {[%emt 0:00:00]} Kb7 {[%emt 0:00:00]} 54. Rd1 {[%emt 0:00:00]} Be4 {[%emt 0:00:00][%csl Ge4][%cal Rc7c2]} 55. Rd2 {[%emt 0:00:00]} Qa4 {[%emt 0:00:00][%cal Ra4a1]} 56. Kd1 {[%emt 0:00:00]} Bxc2+ {[%emt 0:00:00]} 57. Ke1 {[%emt 0:00:09]} Qa1+ {[%emt 0:00:00]} 58. Ke2 {[%emt 0:01:26]} Re7+ {[%emt 0:00:00]} 59. Kf3 {[%emt 0:00:08]} Qc3+ {[%emt 0:00:00] Weighted Error Value: White=0.57/Black=0.29 (precise)} 0-1